fUST/lending_fUST_20240123
["ID","MTS","AMOUNT","RATE_DAILY","PERIOD"]
[312559628,1705994642680,-500.0,0.00041917,31]
[312559629,1705994642704,-506.74990114,0.00041917,31]
[312559630,1705994642730,-500.0,0.00041917,31]
[312559631,1705994642754,-506.08551368,0.00041917,31]
[312559632,1705994642779,-1224.59,0.00041917,31]
[312559633,1705994642803,-500.0,0.00041917,31]
[312559634,1705994642827,-500.0,0.00041917,31]
[312559635,1705994642851,-500.0,0.00041917,31]
[312559636,1705994642875,-510.82226176,0.00041917,31]
[312559637,1705994642898,-507.11019817,0.00041917,31]
[312559638,1705994642923,-1344.97,0.00041917,31]
[312559639,1705994642948,-500.0,0.00041917,31]
[312559640,1705994642972,-500.0,0.00041917,31]
[312559641,1705994642997,-500.0,0.00041917,31]
[312559642,1705994643021,-1755.36,0.00041917,31]
[312559643,1705994643045,-1542.37,0.00041917,31]
[312559644,1705994643069,-500.0,0.00041917,31]
[312559645,1705994643094,-503.79271214,0.00041917,31]
[312559646,1705994643117,-503.63440765,0.00041917,31]
[312559647,1705994643141,-500.0,0.00041917,31]
[312559648,1705994643166,-500.0,0.00041917,31]
[312559649,1705994643191,-500.0,0.00041917,31]
[312559650,1705994643214,-212.16199041,0.00041917,31]
[312559651,1705994643238,-500.0,0.00041917,31]
[312559652,1705994643262,-510.89782273,0.00041917,31]
[312559653,1705994643286,-269.96456113,0.00041917,31]
[312559654,1705994643311,-1570.82,0.00041917,31]
[312559655,1705994643335,-500.0,0.00041917,31]
[312559656,1705994643446,-500.0,0.00041917,31]
[312559657,1705994643471,-500.0,0.00041917,31]
[312559658,1705994643496,-581.0,0.00041917,31]
[312559659,1705994643521,-500.0,0.00041917,31]
[312559660,1705994643545,-500.0,0.00041917,31]
[312559661,1705994643570,-393.14492439,0.00041917,31]
[312559662,1705994643594,-500.0,0.00041917,31]
[312559663,1705994643618,-500.0,0.00041917,31]
[312559664,1705994643641,-1622.72,0.00041917,31]
[312559665,1705994643666,-1545.31,0.00041917,31]
[312559666,1705994643689,-597.97659792,0.00041917,31]
[312559667,1705994643715,-1909.61,0.00041917,31]
[312559668,1705994643743,-500.0,0.00041917,31]
[312559669,1705994643768,-500.0,0.00041917,31]
[312559670,1705994643793,-500.0,0.00041917,31]
[312559671,1705994643819,-345.82736242,0.00041917,31]
[312559672,1705994643843,-500.0,0.00041917,31]
[312559673,1705994643867,-573.23,0.00041917,31]
[312559674,1705994643889,-953.96,0.00041917,31]
[312559675,1705994643912,-500.0,0.00041917,31]
[312559676,1705994643937,-1776.09,0.00041917,31]
[312559677,1705994643961,-500.0,0.00041917,31]
[312559678,1705994643984,-677.48,0.00041917,31]
[312559679,1705994644008,-500.0,0.00041917,31]
[312559680,1705994644033,-1795.13,0.00041917,31]
[312559681,1705994644056,-500.0,0.00041917,31]
[312559682,1705994644081,-675.39,0.00041917,31]
[312559683,1705994644106,-500.0,0.00041917,31]
[312559684,1705994644130,-500.0,0.00041917,31]
[312559685,1705994644154,-503.18118409,0.00041917,31]
[312559686,1705994644178,-558.18,0.00041917,31]
[312559687,1705994644202,-500.0,0.00041917,31]
[312559688,1705994644226,-1792.37,0.00041917,31]
[312559689,1705994644250,-500.0,0.00041917,31]
[312559690,1705994644274,-871.27,0.00041917,31]
[312559691,1705994644298,-505.65403385,0.00041917,31]
[312559692,1705994644321,-500.0,0.00041917,31]
[312559693,1705994644345,-1840.41,0.00041917,31]
[312559694,1705994644369,-500.0,0.00041917,31]
[312559695,1705994644392,-1341.38,0.00041917,31]
[312559696,1705994644416,-1156.76,0.00041917,31]
[312559697,1705994644446,-500.0,0.00041917,31]
[312559698,1705994644470,-500.0,0.00041917,31]
[312559699,1705994644494,-525.4283161,0.00041917,31]
[312559700,1705994644518,-500.0,0.00041917,31]
[312559701,1705994644542,-506.05841727,0.00041917,31]
[312559702,1705994644566,-500.0,0.00041917,31]
[312559703,1705994644590,-504.16876481,0.00041917,31]
[312559704,1705994644615,-500.0,0.00041917,31]
[312559705,1705994644639,-500.0,0.00041917,31]
[312559706,1705994644664,-500.0,0.00041917,31]
[312559707,1705994644689,-500.0,0.00041917,31]
[312559708,1705994644714,-1448.75,0.00041917,31]
[312559709,1705994644742,-500.0,0.00041917,31]
[312559710,1705994644766,-1955.39,0.00041917,31]
[312559711,1705994644791,-500.0,0.00041917,31]
[312559712,1705994644818,-10610.11535345,0.00041999,30]
[312559713,1705994644842,-150.0,0.00042,30]
[312559714,1705994644867,-1000.0,0.00042,42]
[312559715,1705994644891,-1000.0,0.00042,30]
[312559716,1705994644915,-831.77,0.00042191,31]
[312559717,1705994644940,-504.73324168,0.00042191,31]
[312559718,1705994644964,-665.99,0.00042191,31]
[312559719,1705994644989,-500.0,0.00042191,31]
[312559720,1705994645013,-500.0,0.00042191,31]
[312559721,1705994645039,-500.0,0.00042191,31]
[312559722,1705994645065,-542.16,0.00042191,31]
[312559723,1705994645090,-439.68525115,0.00042191,31]
[312559724,1705994645116,-319.50925138,0.00042191,31]
[312559725,1705994645141,-625.12,0.00042191,31]
[312559726,1705994645167,-254.90150413,0.00042191,31]
[312559727,1705994645193,-150.0,0.00042191,31]
[312559728,1705994645219,-500.0,0.00042191,31]
[312559729,1705994645351,-500.0,0.00042191,31]
[312559730,1705994645378,-175.6897546,0.00042191,31]
[312559731,1705994645404,-500.0,0.00042191,31]
[312559732,1705994645432,-500.0,0.00042191,31]
[312559733,1705994645458,-500.0,0.00042191,31]
[312559734,1705994645483,-508.07259724,0.00042191,31]
[312559735,1705994645508,-238.92013946,0.00042191,31]
[312559736,1705994645533,-599.17426197,0.00042191,31]
[312559737,1705994645559,-500.0,0.00042191,31]
[312559738,1705994645585,-500.0,0.00042191,31]
[312559739,1705994645609,-500.0,0.00042191,31]
[312559740,1705994645634,-500.0,0.00042191,31]
[312559741,1705994645660,-500.0,0.00042191,31]
[312559742,1705994645686,-500.0,0.00042191,31]
[312559743,1705994645713,-500.0,0.00042191,31]
[312559744,1705994645742,-561.32,0.00042191,31]
[312559745,1705994645770,-613.54,0.00042191,31]
[312559746,1705994645798,-500.0,0.00042191,31]
[312559747,1705994645822,-1320.3,0.00042191,31]
[312559748,1705994645850,-515.08,0.00042191,31]
[312559749,1705994645876,-1319.31,0.00042191,31]
[312559750,1705994645901,-500.0,0.00042191,31]
[312559751,1705994645926,-555.72,0.00042191,31]
[312559752,1705994645951,-492.57532234,0.00042191,31]
[312559753,1705994645976,-500.0,0.00042191,31]
[312559754,1705994646002,-500.0,0.00042191,31]
[312559755,1705994646028,-502.13253063,0.00042191,31]
[312559756,1705994646054,-514.17472405,0.00042191,31]
[312559757,1705994646079,-963.53,0.00042191,31]
[312559758,1705994646105,-248.96790637,0.00042191,31]
[312559759,1705994646132,-1701.55,0.00042191,31]
[312559760,1705994646159,-351.50553932,0.00042191,31]
[312559761,1705994646187,-1185.15,0.00042191,31]
[312559762,1705994646212,-848.7,0.00042191,31]
[312559763,1705994646238,-500.0,0.00042191,31]
[312559764,1705994646263,-509.70365105,0.00042191,31]
[312559765,1705994646287,-500.0,0.00042191,31]
[312559766,1705994646313,-500.0,0.00042191,31]
[312559767,1705994646338,-500.0,0.00042191,31]
[312559768,1705994646361,-500.0,0.00042191,31]
[312559769,1705994646387,-676.15,0.00042191,31]
[312559770,1705994646412,-500.0,0.00042191,31]
[312559771,1705994646437,-571.03118608,0.00042191,31]
[312559772,1705994646462,-507.08917367,0.00042191,31]
[312559773,1705994646487,-500.0,0.00042191,31]
[312559774,1705994646512,-500.0,0.00042191,31]
[312559775,1705994646536,-500.0,0.00042191,31]
[312559776,1705994646560,-500.0,0.00042191,31]
[312559777,1705994646587,-752.44,0.00042191,31]
[312559778,1705994646611,-500.0,0.00042191,31]
[312559779,1705994646636,-293.5542317,0.00042191,31]
[312559780,1705994646660,-625.17,0.00042191,31]
[312559781,1705994646683,-500.0,0.00042191,31]
[312559782,1705994646707,-500.0,0.00042191,31]
[312559783,1705994646731,-1224.59,0.00042191,31]
[312559784,1705994646755,-500.0,0.00042191,31]
[312559785,1705994646781,-500.0,0.00042191,31]
[312559786,1705994646806,-500.0,0.00042191,31]
[312559787,1705994646830,-500.0,0.00042191,31]
[312559788,1705994646854,-500.0,0.00042191,31]
[312559789,1705994646879,-1344.97,0.00042191,31]
[312559790,1705994646903,-500.0,0.00042191,31]
[312559791,1705994646928,-1755.36,0.00042191,31]
[312559792,1705994646951,-1542.37,0.00042191,31]
[312559793,1705994646975,-500.0,0.00042191,31]
[312559794,1705994646999,-500.0,0.00042191,31]
[312559795,1705994647025,-500.0,0.00042191,31]
[312559796,1705994647050,-500.0,0.00042191,31]
[312559797,1705994647074,-500.0,0.00042191,31]
[312559798,1705994647099,-1570.82,0.00042191,31]
[312559799,1705994647214,-500.0,0.00042191,31]
[312559800,1705994647241,-500.0,0.00042191,31]
[312559801,1705994647266,-500.0,0.00042191,31]
[312559802,1705994647290,-581.0,0.00042191,31]
[312559803,1705994647314,-500.0,0.00042191,31]
[312559804,1705994647339,-500.0,0.00042191,31]
[312559805,1705994647363,-500.0,0.00042191,31]
[312559806,1705994647387,-500.0,0.00042191,31]
[312559807,1705994647411,-1622.72,0.00042191,31]
[312559808,1705994647435,-1545.31,0.00042191,31]
[312559809,1705994647459,-1909.61,0.00042191,31]
[312559810,1705994647483,-500.0,0.00042191,31]
[312559811,1705994647507,-500.0,0.00042191,31]
[312559812,1705994647530,-500.0,0.00042191,31]
[312559813,1705994647554,-500.0,0.00042191,31]
[312559814,1705994647578,-573.23,0.00042191,31]
[312559815,1705994647603,-953.96,0.00042191,31]
[312559816,1705994647626,-500.0,0.00042191,31]
[312559817,1705994647650,-1776.09,0.00042191,31]
[312559818,1705994647675,-517.77007917,0.00042191,31]
[312559819,1705994647699,-677.48,0.00042191,31]
[312559820,1705994647726,-525.03213438,0.00042191,31]
[312559821,1705994647751,-1795.13,0.00042191,31]
[312559822,1705994647778,-532.03465998,0.00042191,31]
[312559823,1705994647803,-675.39,0.00042191,31]
[312559824,1705994647828,-205.66726278,0.00042191,31]
[312559825,1705994647857,-171.64125263,0.00042191,31]
[312559826,1705994647883,-558.18,0.00042191,31]
[312559827,1705994647908,-500.0,0.00042191,31]
[312559828,1705994647936,-1792.37,0.00042191,31]
[312559829,1705994647961,-500.0,0.00042191,31]
[312559830,1705994647986,-871.27,0.00042191,31]
[312559831,1705994648011,-500.0,0.00042191,31]
[312559832,1705994648037,-1840.41,0.00042191,31]
[312559833,1705994648063,-500.0,0.00042191,31]
[312559834,1705994648087,-1341.38,0.00042191,31]
[312559835,1705994648112,-1156.76,0.00042191,31]
[312559836,1705994648137,-500.0,0.00042191,31]
[312559837,1705994648163,-500.0,0.00042191,31]
[312559838,1705994648187,-500.0,0.00042191,31]
[312559839,1705994648212,-352.64750724,0.00042191,31]
[312559840,1705994648235,-285.41204753,0.00042191,31]
[312559841,1705994648262,-500.0,0.00042191,31]
[312559842,1705994648287,-166.92859353,0.00042191,31]
[312559843,1705994648314,-1448.75,0.00042191,31]
[312559844,1705994648339,-500.0,0.00042191,31]
[312559845,1705994648364,-1955.39,0.00042191,31]
[312559846,1705994648391,-500.0,0.00042191,31]
[312559847,1705994648416,-150.0,0.000422,30]
[312559848,1705994648443,-1206.79320679,0.00042338,30]
[312559849,1705994648468,-2078.0,0.00042345,120]
[312559850,1705994648494,-150.0,0.000424,30]
[312559851,1705994648519,-831.77,0.00042465,31]
[312559852,1705994648545,-665.99,0.00042465,31]
[312559853,1705994648569,-500.0,0.00042465,31]
[312559854,1705994648595,-500.0,0.00042465,31]
[312559855,1705994648618,-500.0,0.00042465,31]
[312559856,1705994648644,-542.16,0.00042465,31]
[312559857,1705994648667,-625.12,0.00042465,31]
[312559858,1705994648691,-150.0,0.00042465,31]
[312559859,1705994648715,-500.0,0.00042465,31]
[312559860,1705994648743,-520.8103229,0.00042465,31]
[312559861,1705994648768,-500.0,0.00042465,31]
[312559862,1705994648793,-500.0,0.00042465,31]
[312559863,1705994648820,-500.0,0.00042465,31]
[312559864,1705994648846,-500.0,0.00042465,31]
[312559865,1705994648871,-500.0,0.00042465,31]
[312559866,1705994648896,-500.0,0.00042465,31]
[312559867,1705994649002,-500.0,0.00042465,31]
[312559868,1705994649033,-500.0,0.00042465,31]
[312559869,1705994649059,-500.0,0.00042465,31]
[312559870,1705994649084,-500.0,0.00042465,31]
[312559871,1705994649109,-561.32,0.00042465,31]
[312559872,1705994649134,-613.54,0.00042465,31]
[312559873,1705994649159,-500.0,0.00042465,31]
[312559874,1705994649183,-1320.3,0.00042465,31]
[312559875,1705994649208,-515.08,0.00042465,31]
[312559876,1705994649234,-1319.31,0.00042465,31]
[312559877,1705994649259,-500.0,0.00042465,31]
[312559878,1705994649283,-555.72,0.00042465,31]
[312559879,1705994649308,-339.33138059,0.00042465,31]
[312559880,1705994649331,-500.0,0.00042465,31]
[312559881,1705994649357,-963.53,0.00042465,31]
[312559882,1705994649383,-1701.55,0.00042465,31]
[312559883,1705994649408,-1185.15,0.00042465,31]
[312559884,1705994649432,-848.7,0.00042465,31]
[312559885,1705994649458,-295.84387753,0.00042465,31]
[312559886,1705994649482,-500.0,0.00042465,31]
[312559887,1705994649507,-500.0,0.00042465,31]
[312559888,1705994649532,-648.0623554,0.00042465,31]
[312559889,1705994649558,-516.81325759,0.00042465,31]
[312559890,1705994649583,-676.15,0.00042465,31]
[312559891,1705994649608,-500.0,0.00042465,31]
[312559892,1705994649633,-500.0,0.00042465,31]
[312559893,1705994649657,-500.0,0.00042465,31]
[312559894,1705994649681,-500.0,0.00042465,31]
[312559895,1705994649705,-387.94426896,0.00042465,31]
[312559896,1705994649731,-752.44,0.00042465,31]
[312559897,1705994649755,-500.0,0.00042465,31]
[312559898,1705994649781,-625.17,0.00042465,31]
[312559899,1705994649806,-500.0,0.00042465,31]
[312559900,1705994649829,-522.5854833,0.00042465,31]
[312559901,1705994649854,-1224.59,0.00042465,31]
[312559902,1705994649878,-500.0,0.00042465,31]
[312559903,1705994649902,-500.0,0.00042465,31]
[312559904,1705994649926,-500.0,0.00042465,31]
[312559905,1705994649950,-500.0,0.00042465,31]
[312559906,1705994649974,-500.0,0.00042465,31]
[312559907,1705994650000,-1344.97,0.00042465,31]
[312559908,1705994650024,-500.0,0.00042465,31]
[312559909,1705994650048,-1755.36,0.00042465,31]
[312559910,1705994650071,-1542.37,0.00042465,31]
[312559911,1705994650095,-500.0,0.00042465,31]
[312559912,1705994650121,-509.96700903,0.00042465,31]
[312559913,1705994650147,-500.0,0.00042465,31]
[312559914,1705994650172,-500.0,0.00042465,31]
[312559915,1705994650199,-500.0,0.00042465,31]
[312559916,1705994650227,-1570.82,0.00042465,31]
[312559917,1705994650267,-500.0,0.00042465,31]
[312559918,1705994650296,-500.0,0.00042465,31]
[312559919,1705994650323,-500.0,0.00042465,31]
[312559920,1705994650348,-581.0,0.00042465,31]
[312559921,1705994650373,-506.19900187,0.00042465,31]
[312559922,1705994650399,-500.0,0.00042465,31]
[312559923,1705994650424,-500.0,0.00042465,31]
[312559924,1705994650449,-500.0,0.00042465,31]
[312559925,1705994650474,-1622.72,0.00042465,31]
[312559926,1705994650502,-1545.31,0.00042465,31]
[312559927,1705994650526,-1909.61,0.00042465,31]
[312559928,1705994650552,-500.0,0.00042465,31]
[312559929,1705994650577,-516.27470673,0.00042465,31]
[312559930,1705994650609,-500.0,0.00042465,31]
[312559931,1705994650638,-178.57408613,0.00042465,31]
[312559932,1705994650661,-573.23,0.00042465,31]
[312559933,1705994650786,-953.96,0.00042465,31]
[312559934,1705994650813,-500.0,0.00042465,31]
[312559935,1705994650838,-1776.09,0.00042465,31]
[312559936,1705994650863,-677.48,0.00042465,31]
[312559937,1705994650887,-1795.13,0.00042465,31]
[312559938,1705994650912,-675.39,0.00042465,31]
[312559939,1705994650939,-558.18,0.00042465,31]
[312559940,1705994650963,-500.0,0.00042465,31]
[312559941,1705994650988,-1792.37,0.00042465,31]
[312559942,1705994651013,-500.0,0.00042465,31]
[312559943,1705994651039,-871.27,0.00042465,31]
[312559944,1705994651063,-500.0,0.00042465,31]
[312559945,1705994651088,-1840.41,0.00042465,31]
[312559946,1705994651113,-500.0,0.00042465,31]
[312559947,1705994651138,-1341.38,0.00042465,31]
[312559948,1705994651162,-1156.76,0.00042465,31]
[312559949,1705994651186,-500.0,0.00042465,31]
[312559950,1705994651212,-180.95480986,0.00042465,31]
[312559951,1705994651238,-500.0,0.00042465,31]
[312559952,1705994651263,-500.0,0.00042465,31]
[312559953,1705994651288,-1448.75,0.00042465,31]
[312559954,1705994651312,-500.0,0.00042465,31]
[312559955,1705994651337,-1955.39,0.00042465,31]
[312559956,1705994651361,-500.0,0.000425,30]
[312559957,1705994651385,-150.0,0.000426,30]
[312559958,1705994651409,-6369.4507003,0.00042731,30]
[312559959,1705994651433,-831.77,0.00042739,31]
[312559960,1705994651458,-665.99,0.00042739,31]
[312559961,1705994651483,-500.0,0.00042739,31]
[312559962,1705994651507,-500.0,0.00042739,31]
[312559963,1705994651532,-500.0,0.00042739,31]
[312559964,1705994651556,-542.16,0.00042739,31]
[312559965,1705994651580,-625.12,0.00042739,31]
[312559966,1705994651605,-150.0,0.00042739,31]
[312559967,1705994651630,-500.0,0.00042739,31]
[312559968,1705994651655,-500.0,0.00042739,31]
[312559969,1705994651680,-500.0,0.00042739,31]
[312559970,1705994651704,-500.0,0.00042739,31]
[312559971,1705994651729,-516.84983457,0.00042739,31]
[312559972,1705994651754,-591.12659239,0.00042739,31]
[312559973,1705994651779,-500.0,0.00042739,31]
[312559974,1705994651803,-500.0,0.00042739,31]
[312559975,1705994651828,-500.0,0.00042739,31]
[312559976,1705994651854,-500.0,0.00042739,31]
[312559977,1705994651878,-561.32,0.00042739,31]
[312559978,1705994651903,-613.54,0.00042739,31]
[312559979,1705994651928,-366.93454927,0.00042739,31]
[312559980,1705994651954,-1320.3,0.00042739,31]
[312559981,1705994651979,-515.08,0.00042739,31]
[312559982,1705994652003,-1319.31,0.00042739,31]
[312559983,1705994652027,-500.0,0.00042739,31]
[312559984,1705994652052,-555.72,0.00042739,31]
[312559985,1705994652078,-500.0,0.00042739,31]
[312559986,1705994652104,-963.53,0.00042739,31]
[312559987,1705994652129,-1701.55,0.00042739,31]
[312559988,1705994652153,-1185.15,0.00042739,31]
[312559989,1705994652177,-848.7,0.00042739,31]
[312559990,1705994652203,-500.0,0.00042739,31]
[312559991,1705994652228,-500.0,0.00042739,31]
[312559992,1705994652253,-676.15,0.00042739,31]
[312559993,1705994652279,-500.0,0.00042739,31]
[312559994,1705994652304,-500.0,0.00042739,31]
[312559995,1705994652328,-500.0,0.00042739,31]
[312559996,1705994652352,-399.62897355,0.00042739,31]
[312559997,1705994652463,-752.44,0.00042739,31]
[312559998,1705994652489,-500.0,0.00042739,31]
[312559999,1705994652513,-625.17,0.00042739,31]
[312560000,1705994652538,-596.22846738,0.00042739,31]
[312560001,1705994652562,-1224.59,0.00042739,31]
[312560002,1705994652586,-500.0,0.00042739,31]
[312560003,1705994652610,-500.0,0.00042739,31]
[312560004,1705994652635,-500.0,0.00042739,31]
[312560005,1705994652660,-508.37428147,0.00042739,31]
[312560006,1705994652684,-500.0,0.00042739,31]
[312560007,1705994652709,-1344.97,0.00042739,31]
[312560008,1705994652735,-500.0,0.00042739,31]
[312560009,1705994652761,-1755.36,0.00042739,31]
[312560010,1705994652786,-1542.37,0.00042739,31]
[312560011,1705994652810,-500.0,0.00042739,31]
[312560012,1705994652835,-500.0,0.00042739,31]
[312560013,1705994652859,-500.0,0.00042739,31]
[312560014,1705994652884,-500.0,0.00042739,31]
[312560015,1705994652909,-1570.82,0.00042739,31]
[312560016,1705994652933,-500.0,0.00042739,31]
[312560017,1705994652958,-577.18036125,0.00042739,31]
[312560018,1705994652983,-500.0,0.00042739,31]
[312560019,1705994653008,-581.0,0.00042739,31]
[312560020,1705994653033,-508.97475015,0.00042739,31]
[312560021,1705994653057,-329.56705263,0.00042739,31]
[312560022,1705994653083,-500.0,0.00042739,31]
[312560023,1705994653108,-1622.72,0.00042739,31]
[312560024,1705994653132,-1545.31,0.00042739,31]
[312560025,1705994653156,-1909.61,0.00042739,31]
[312560026,1705994653182,-500.0,0.00042739,31]
[312560027,1705994653206,-646.99591058,0.00042739,31]
[312560028,1705994653233,-573.23,0.00042739,31]
[312560029,1705994653257,-953.96,0.00042739,31]
[312560030,1705994653281,-500.0,0.00042739,31]
[312560031,1705994653305,-1776.09,0.00042739,31]
[312560032,1705994653329,-677.48,0.00042739,31]
[312560033,1705994653354,-1795.13,0.00042739,31]
[312560034,1705994653378,-675.39,0.00042739,31]
[312560035,1705994653403,-558.18,0.00042739,31]
[312560036,1705994653427,-500.0,0.00042739,31]
[312560037,1705994653452,-1792.37,0.00042739,31]
[312560038,1705994653476,-500.0,0.00042739,31]
[312560039,1705994653502,-871.27,0.00042739,31]
[312560040,1705994653526,-176.02241953,0.00042739,31]
[312560041,1705994653552,-1840.41,0.00042739,31]
[312560042,1705994653577,-500.0,0.00042739,31]
[312560043,1705994653602,-1341.38,0.00042739,31]
[312560044,1705994653627,-1156.76,0.00042739,31]
[312560045,1705994653651,-310.77833506,0.00042739,31]
[312560046,1705994653677,-500.0,0.00042739,31]
[312560047,1705994653703,-500.0,0.00042739,31]
[312560048,1705994653729,-1448.75,0.00042739,31]
[312560049,1705994653753,-504.08601165,0.00042739,31]
[312560050,1705994653779,-1955.39,0.00042739,31]
[312560051,1705994653804,-150.0,0.000428,30]
[312560052,1705994653829,-172.64284262,0.00042889,30]
[312560053,1705994653854,-150.0,0.00043,30]
[312560054,1705994653879,-1000.0,0.00043,43]
[312560055,1705994653903,-1000.0,0.00043,30]
[312560056,1705994653930,-831.77,0.00043013,31]
[312560057,1705994653955,-665.99,0.00043013,31]
[312560058,1705994654094,-500.0,0.00043013,31]
[312560059,1705994654119,-500.0,0.00043013,31]
[312560060,1705994654145,-542.16,0.00043013,31]
[312560061,1705994654171,-500.0,0.00043013,31]
[312560062,1705994654196,-625.12,0.00043013,31]
[312560063,1705994654224,-150.0,0.00043013,31]
[312560064,1705994654252,-500.0,0.00043013,31]
[312560065,1705994654279,-524.58238564,0.00043013,31]
[312560066,1705994654305,-517.3455182,0.00043013,31]
[312560067,1705994654334,-500.0,0.00043013,31]
[312560068,1705994654363,-500.0,0.00043013,31]
[312560069,1705994654390,-500.0,0.00043013,31]
[312560070,1705994654416,-255.11294049,0.00043013,31]
[312560071,1705994654442,-561.32,0.00043013,31]
[312560072,1705994654467,-613.54,0.00043013,31]
[312560073,1705994654492,-1320.3,0.00043013,31]
[312560074,1705994654517,-515.08,0.00043013,31]
[312560075,1705994654542,-1319.31,0.00043013,31]
[312560076,1705994654569,-500.0,0.00043013,31]
[312560077,1705994654596,-555.72,0.00043013,31]
[312560078,1705994654621,-500.0,0.00043013,31]
[312560079,1705994654650,-963.53,0.00043013,31]
[312560080,1705994654675,-1701.55,0.00043013,31]
[312560081,1705994654700,-1185.15,0.00043013,31]
[312560082,1705994654726,-848.7,0.00043013,31]
[312560083,1705994654753,-326.42398035,0.00043013,31]
[312560084,1705994654778,-312.24134907,0.00043013,31]
[312560085,1705994654803,-676.15,0.00043013,31]
[312560086,1705994654827,-500.0,0.00043013,31]
[312560087,1705994654851,-500.0,0.00043013,31]
[312560088,1705994654877,-500.0,0.00043013,31]
[312560089,1705994654903,-752.44,0.00043013,31]
[312560090,1705994654932,-500.0,0.00043013,31]
[312560091,1705994654961,-625.17,0.00043013,31]
[312560092,1705994654988,-1224.59,0.00043013,31]
[312560093,1705994655015,-479.05993793,0.00043013,31]
[312560094,1705994655041,-519.43873488,0.00043013,31]
[312560095,1705994655066,-500.0,0.00043013,31]
[312560096,1705994655091,-617.49053569,0.00043013,31]
[312560097,1705994655116,-1344.97,0.00043013,31]
[312560098,1705994655142,-500.0,0.00043013,31]
[312560099,1705994655168,-1755.36,0.00043013,31]
[312560100,1705994655193,-1542.37,0.00043013,31]
[312560101,1705994655218,-500.0,0.00043013,31]
[312560102,1705994655245,-500.0,0.00043013,31]
[312560103,1705994655271,-500.0,0.00043013,31]
[312560104,1705994655297,-500.0,0.00043013,31]
[312560105,1705994655323,-1570.82,0.00043013,31]
[312560106,1705994655348,-500.0,0.00043013,31]
[312560107,1705994655374,-411.89864929,0.00043013,31]
[312560108,1705994655399,-581.0,0.00043013,31]
[312560109,1705994655425,-500.0,0.00043013,31]
[312560110,1705994655452,-1622.72,0.00043013,31]
[312560111,1705994655477,-1545.31,0.00043013,31]
[312560112,1705994655505,-1909.61,0.00043013,31]
[312560113,1705994655530,-500.0,0.00043013,31]
[312560114,1705994655555,-573.23,0.00043013,31]
[312560115,1705994655580,-953.96,0.00043013,31]
[312560116,1705994655606,-533.67543913,0.00043013,31]
[312560117,1705994655720,-1776.09,0.00043013,31]
[312560118,1705994655749,-677.48,0.00043013,31]
[312560119,1705994655774,-1795.13,0.00043013,31]
[312560120,1705994655799,-675.39,0.00043013,31]
[312560121,1705994655825,-558.18,0.00043013,31]
[312560122,1705994655850,-500.0,0.00043013,31]
[312560123,1705994655876,-1792.37,0.00043013,31]
[312560124,1705994655899,-500.0,0.00043013,31]
[312560125,1705994655924,-871.27,0.00043013,31]
[312560126,1705994655949,-1840.41,0.00043013,31]
[312560127,1705994655975,-500.0,0.00043013,31]